Date,Expense Type,Expense Area,Supplier,Transaction Number,Amount �,Description
10/12/2012,Legal & Professional,Professional Standards,Audio Forensic Services,97969,"3,200.00",Professional Conduct Committee
17/12/2012,IT,Corporate,Audio Visual Machines Ltd,98192,"2,553.74",Equipment
07/12/2012,Facilities,Corporate,Beacon Fire & Security ,98024,"1,834.20",Equipment & Maintenance
07/12/2012,Facilities,Corporate,Beacon Fire & Security ,98025,"1,216.37",Equipment & Maintenance
29/12/2012,Facilities,Corporate,Beacon Fire & Security ,98513,720.00,Equipment & Maintenance
19/12/2012,Legal & Professional,Professional Standards,Bevan Brittan LLP,98129,"4,542.60",Professional Conduct Committee
19/12/2012,Legal & Professional,Professional Standards,Bevan Brittan LLP,98130,"1,327.25",Professional Conduct Committee
19/12/2012,Legal & Professional,Professional Standards,Bevan Brittan LLP,98131,"1,426.80",Professional Conduct Committee
19/12/2012,Legal & Professional,Professional Standards,Bevan Brittan LLP,98133,"3,120.04",Professional Conduct Committee
19/12/2012,Legal & Professional,Professional Standards,Bevan Brittan LLP,98134,"4,131.00",Professional Conduct Committee
01/12/2012,IT,Corporate,Bighand Ltd,97469,714.00,Digital dictation
31/12/2012,Facilities,Overheads,Bee Services,98126,"1,297.41",Office Cleaning
14/12/2012,Facilities,Overheads,Bright A Blind,98196,601.20,Office Cleaning
19/05/2168,Scanning,Overheads,Capita Business Services,98026,871.66,Document Scanning
18/12/2012,Facilities,Overheads,C&S Contracts,98197,642.00,Office Cleaning
05/12/2012,IT,Corporate,Databarracks ,98029,"1,756.10",Online backup
27/12/2012,IT,Overheads,Atgill Ltd,98193,"1,824.00",Specialist IT support
27/12/2012,IT,Overheads,Atgill Ltd,98194,"1,920.00",Specialist IT support
27/12/2012,IT,Overheads,Atgill Ltd,98195,"1,440.00",Specialist IT support
21/12/2012,Facilities,Overheads,Edge Maintenance Ltd,100200,"2,096.38",Repairs & Maintenance
05/12/2012,IT,Corporate,Push Studios,99087,"1,782.00",Specialist IT
05/12/2012,IT,Corporate,Push Studios,99091,594.00,Specialist IT
10/12/2012,Legal & Professional,Professional Standards,Attwaters Jameson Hill,97978,"1,895.35",Professional Conduct Committee
10/12/2012,Legal & Professional,Professional Standards,Attwaters Jameson Hill,97979,"1,895.35",Professional Conduct Committee
19/12/2012,Legal & Professional,Professional Standards,Attwaters Jameson Hill,98121,"1,822.50",Professional Conduct Committee
19/12/2012,Legal & Professional,Professional Standards,Attwaters Jameson Hill,98124,652.80,Professional Conduct Committee
14/12/2012,Legal & Professional,Professional Standards,Jonathan Goodwin Solicitors,98031,"10,015.25",Professional Conduct Committee
21/12/2012,Legal & Professional,Professional Standards,Jonathan Goodwin Solicitors,98136,"24,000.00",Professional Conduct Committee
14/12/2012,Legal & Professional,Professional Standards,Jonathan Goodwin Solicitors,98137,"5,911.20",Professional Conduct Committee
20/12/2012,Legal & Professional,Professional Standards,Jonathan Goodwin Solicitors,98138,"5,873.70",Professional Conduct Committee
21/12/2012,Legal & Professional,Professional Standards,Jonathan Goodwin Solicitors,98199,"3,003.30",Professional Conduct Committee
11/12/2012,Legal & Professional,Professional Standards,Kingsley Napley,98200,"2,815.80",Professional Conduct Committee
20/12/2012,Staffing,Overheads,Legal & General,98066,"4,167.41",Insurance
15/12/2012,Facilities,Corporate,London Wall Installation,98201,"1,170.00",Repairs & Maintenance
19/12/2012,Facilities,Corporate,M&M Electrical,98203,660.00,Repairs & Maintenance
19/12/2012,IT,Corporate,N2 Visual Communications,98205,"1,680.00",Printing
31/12/2012,IT,Corporate,N2 Visual Communications,98527,620.00,Storage
12/12/2012,IT,Corporate,N2 Visual Communications,98528,696.00,Printing
18/12/2012,IT,Corporate,Premier,100503,"5,287.50",Specialist IT Support
21/12/2012,IT,Corporate,Premier,98207,"6,000.00",Specialist IT support
04/12/2012,Postage,Corporate,Royal Mail Group Ltd,97674,"9,898.91",Retention Fee postage
19/12/2012,Legal & Professional,Corporate,Russell - Cooke,98208,"2,116.80",Legal advice
19/12/2012,Legal & Professional,Corporate,Russell - Cooke,98210,504.00,Legal advice
19/12/2012,Legal & Professional,Corporate,Russell - Cooke,98211,"7,498.80",Legal advice
19/12/2012,Legal & Professional,Corporate,Russell - Cooke,98212,"2,740.80",Legal advice
19/12/2012,Legal & Professional,Corporate,Russell - Cooke,98213,"2,889.60",Legal advice
19/12/2012,Legal & Professional,Corporate,Russell - Cooke,98214,"1,075.20",Legal advice
19/12/2012,Legal & Professional,Corporate,Russell - Cooke,98215,"2,217.60",Legal advice
20/12/2012,Legal & Professional,Corporate,Russell - Cooke,98529,"1,032.00",Legal advice
21/12/2012,Legal & Professional,Corporate,Russell - Cooke,98530,750.00,Legal advice
20/12/2012,Legal & Professional,Corporate,Russell - Cooke,10209,"1,280.90",Legal advice
09/12/2012,IT,Corporate,Keith Simpson,98041,"1,872.00",Web support
07/12/2012,Legal & Professional Fees,Professional Standards,Monro Wright & Wasborough LLP,98221,510.00,Title misuse
07/12/2012,Legal & Professional Fees,Professional Standards,Monro Wright & Wasborough LLP,98228,750.00,Title misuse
07/12/2012,Legal & Professional Fees,Professional Standards,Monro Wright & Wasborough LLP,98231,"1,260.00",Title misuse
07/12/2012,Legal & Professional Fees,Professional Standards,Monro Wright & Wasborough LLP,98232,"2,280.00",Title misuse
07/12/2012,Legal & Professional Fees,Professional Standards,Monro Wright & Wasborough LLP,98233,858.00,Title misuse
